bitfinex/quotes_BTCUSD_20241009
["timestamp","ask_amount","ask_price","bid_price","bid_amount"]
[1728475479948,0.29420073,62189.0,62188.0,0.42963764]
[1728475480181,0.29620073,62189.0,62188.0,0.42963764]
[1728475480902,0.30520073,62189.0,62188.0,0.42963764]
[1728475481642,0.30893819,62189.0,62188.0,0.42963764]
[1728475483048,0.31793819,62189.0,62188.0,0.43045864]
[1728475483531,0.31793819,62189.0,62188.0,0.42445864]
[1728475485035,0.31420073,62189.0,62188.0,0.42445864]
[1728475485541,0.19276208,62189.0,62188.0,0.42445864]
[1728475486004,0.19276208,62189.0,62188.0,0.43045864]
[1728475487443,0.03196208,62189.0,62188.0,0.43045864]
[1728475487720,0.02996208,62189.0,62188.0,0.59626064]
[1728475488198,0.018,62189.0,62188.0,0.59626064]
[1728475489000,0.02991145,62189.0,62188.0,0.59626064]
[1728475489209,0.02991145,62189.0,62188.0,0.59126064]
[1728475490113,0.3141501,62189.0,62188.0,0.43045864]
[1728475490561,0.1533501,62189.0,62188.0,0.43045864]
[1728475490774,0.3141501,62189.0,62188.0,0.43045864]
[1728475494228,0.3141501,62189.0,62188.0,0.23995864]
[1728475494908,0.3157921,62189.0,62188.0,0.23995864]
[1728475495133,0.3157921,62189.0,62188.0,0.16165864]
[1728475496313,0.3157921,62189.0,62183.0,0.0811]
[1728475496314,0.18382,62181.0,62179.0,0.00164]
[1728475496584,0.18382,62181.0,62178.0,0.00164]
[1728475496585,0.185826,62179.0,62178.0,0.00164]
[1728475496839,0.31767489,62179.0,62178.0,0.00164]
[1728475497078,0.32975446,62179.0,62178.0,0.00164]
[1728475497338,0.39798248,62179.0,62178.0,0.00164]
[1728475497821,0.326017,62179.0,62178.0,0.00164]
[1728475498772,0.162846,62171.0,62170.0,0.23853646]
[1728475499007,0.28602211,62171.0,62170.0,0.23853646]
[1728475499279,0.162849,62170.0,62169.0,0.00082]
[1728475499530,0.16658646,62170.0,62169.0,0.00082]
[1728475499770,0.1786445,62170.0,62169.0,0.00082]
[1728475500495,0.36379474,62170.0,62169.0,0.00082]
[1728475500726,0.4704265,62170.0,62169.0,0.00082]
[1728475500948,0.4784265,62170.0,62169.0,0.00082]
[1728475501177,0.4864265,62170.0,62169.0,0.00082]
[1728475502550,0.37605728,62170.0,62169.0,0.00082]
[1728475502794,0.03005804,62170.0,62169.0,0.16165764]
[1728475503059,0.178849,62170.0,62169.0,0.16165764]
[1728475503326,0.02981711,62170.0,62169.0,0.16165764]
[1728475503565,0.19066611,62170.0,62169.0,0.00082]
[1728475503800,0.19440357,62170.0,62169.0,0.00082]
[1728475507759,0.19604557,62170.0,62169.0,0.00082]
[1728475513860,0.30656265,62170.0,62169.0,0.00082]
[1728475515705,0.49566265,62170.0,62169.0,0.00082]
[1728475515922,0.49192519,62170.0,62169.0,0.00082]
[1728475516828,0.55442519,62170.0,62169.0,0.00082]
[1728475517045,0.56542519,62170.0,62169.0,0.00082]
[1728475517293,0.57342519,62170.0,62169.0,0.00082]
[1728475518671,0.74926283,62170.0,62169.0,0.00082]
[1728475518894,0.85126283,62170.0,62169.0,0.00082]
[1728475519112,0.86226283,62170.0,62169.0,0.00082]
[1728475519396,0.91015288,62170.0,62169.0,0.00082]
[1728475519587,0.86226283,62170.0,62169.0,0.00082]
[1728475519813,0.86226283,62170.0,62161.0,0.00082]
[1728475519814,0.162869,62162.0,62161.0,0.00082]
[1728475520039,0.88652654,62162.0,62161.0,0.00082]
[1728475520273,0.89460476,62162.0,62161.0,0.00082]
[1728475520512,0.99660476,62162.0,62161.0,0.00082]
[1728475520749,0.99660476,62162.0,62132.0,0.56314846]
[1728475520750,0.005,62119.0,62106.0,0.000821]
[1728475520964,0.18515024,62135.0,62106.0,0.000821]
[1728475520965,0.34616224,62107.0,62106.0,0.000821]
[1728475521190,0.161012,62107.0,62106.0,0.000821]
[1728475521418,0.01553838,62107.0,62106.0,0.000821]
[1728475522152,0.01180092,62107.0,62106.0,0.161836]
[1728475522382,0.00373746,62114.0,62106.0,0.000821]
[1728475522612,0.00373746,62117.0,62109.0,0.005]
[1728475522849,0.00373746,62117.0,62116.0,0.160989]
[1728475523076,0.002,62117.0,62116.0,0.160989]
[1728475523538,0.00373746,62119.0,62111.0,0.327002]
[1728475523539,0.002,62114.0,62111.0,0.005]
[1728475523752,0.002,62114.0,62113.0,0.160996]
[1728475524196,0.00373746,62119.0,62115.0,0.160991]
[1728475524197,0.002,62116.0,62115.0,0.160991]
[1728475524436,0.002,62116.0,62113.0,0.321992]
[1728475524437,0.002,62114.0,62113.0,0.160996]
[1728475525542,0.00373746,62116.0,62113.0,0.321993]
[1728475525812,0.00373746,62120.0,62115.0,0.160989]
[1728475526023,0.012,62117.0,62116.0,0.487964]
[1728475526226,0.002,62121.0,62120.0,0.160978]
[1728475526640,0.002,62117.0,62114.0,0.321986]
[1728475526785,0.009,62116.0,62115.0,0.32182664]
[1728475527030,0.01273746,62116.0,62115.0,0.16083764]
[1728475527189,0.01273746,62116.0,62115.0,0.32182864]
[1728475527399,0.00573746,62116.0,62115.0,0.32182864]
[1728475527603,0.002,62116.0,62115.0,0.32182864]
[1728475527808,0.00573746,62116.0,62115.0,0.32182864]
[1728475528445,0.002,62116.0,62115.0,0.32182864]
[1728475528656,0.00573746,62116.0,62115.0,0.16083764]
[1728475528853,0.002,62116.0,62115.0,0.16083764]
[1728475529056,0.01368908,62116.0,62115.0,0.16083764]
[1728475529295,0.03568908,62116.0,62115.0,0.16083764]
[1728475529489,0.03942654,62116.0,62115.0,0.16083764]
[1728475530759,0.20041554,62116.0,62115.0,0.16083764]
[1728475531182,0.20041554,62116.0,62107.0,0.51322]
[1728475531183,0.12386119,62116.0,62107.0,0.51322]
[1728475531416,0.002,62109.0,62108.0,0.32184664]
[1728475531627,0.002,62109.0,62108.0,0.16083764]
[1728475531849,0.002,62109.0,62108.0,0.32184664]
[1728475531850,0.01168908,62109.0,62108.0,0.32184664]
[1728475532110,0.00373746,62112.0,62111.0,0.161002]
[1728475532351,0.01542654,62112.0,62111.0,0.161002]
[1728475532567,0.01542654,62112.0,62109.0,0.322011]
[1728475532785,0.01168908,62112.0,62110.0,0.322009]
[1728475533008,0.01368908,62112.0,62111.0,0.161002]
[1728475533240,0.01368908,62112.0,62109.0,0.322011]
[1728475533470,0.01368908,62112.0,62111.0,0.161002]
[1728475533687,0.002,62109.0,62108.0,0.16083764]
[1728475533953,0.002,62109.0,62108.0,0.16066924]
[1728475534207,0.002,62109.0,62108.0,0.32167824]
[1728475534860,0.002,62110.0,62108.0,0.16066924]
[1728475535073,0.002,62110.0,62109.0,0.161007]
[1728475535280,0.002,62110.0,62109.0,0.32184464]
[1728475536142,0.009,62112.0,62111.0,0.161002]
[1728475536368,0.002,62112.0,62111.0,0.32183964]
[1728475536572,0.01366964,62112.0,62111.0,0.32183964]
[1728475536781,0.002,62112.0,62111.0,0.16083764]
[1728475536991,0.01366964,62112.0,62111.0,0.32183964]
[1728475537241,0.002,62113.0,62111.0,0.32183964]
[1728475537473,0.02566964,62112.0,62110.0,0.161002]
[1728475537696,0.02566964,62112.0,62111.0,0.161002]
[1728475538778,0.0294071,62112.0,62111.0,0.161002]
[1728475538984,0.01866964,62112.0,62111.0,0.161002]
[1728475539185,0.01166964,62112.0,62111.0,0.161002]
[1728475539527,0.009,62113.0,62111.0,0.322003]
[1728475539731,0.01166964,62112.0,62109.0,0.322014]
[1728475539967,0.01866964,62112.0,62111.0,0.161002]
[1728475540165,0.01866964,62112.0,62109.0,0.322012]
[1728475540390,0.02566964,62112.0,62111.0,0.161002]
[1728475540595,0.02566964,62112.0,62108.0,0.322017]
[1728475540812,0.01866964,62112.0,62111.0,0.161002]
[1728475541023,0.01166964,62112.0,62111.0,0.161002]
[1728475541247,0.002,62115.0,62111.0,0.48283664]
[1728475541463,0.01166963,62114.0,62112.0,0.16083764]
[1728475541882,0.01166963,62114.0,62113.0,0.160996]
[1728475542092,0.01366963,62114.0,62113.0,0.16083764]
[1728475542303,0.01366963,62114.0,62113.0,0.32183364]
[1728475542541,0.01366963,62114.0,62113.0,0.16083764]
[1728475542750,0.07211876,62114.0,62113.0,0.16083764]
[1728475543178,0.08111876,62114.0,62113.0,0.16083764]
[1728475543394,0.08111876,62114.0,62113.0,0.32265464]
[1728475543395,0.02066963,62114.0,62113.0,0.32265464]
[1728475543602,0.009,62114.0,62113.0,0.32265464]
[1728475544034,0.018,62114.0,62113.0,0.32265464]
[1728475544455,0.02,62114.0,62113.0,0.32265464]
[1728475545352,0.02,62114.0,62113.0,0.16165864]
[1728475545837,0.03164897,62114.0,62113.0,0.32265464]
[1728475546759,0.02,62114.0,62113.0,0.32265464]
[1728475549348,0.02,62114.0,62113.0,0.16165864]
[1728475549580,0.03164897,62114.0,62113.0,0.16165864]
[1728475549820,0.03164897,62114.0,62113.0,0.32265464]
[1728475550111,0.03164897,62114.0,62113.0,0.16165864]
[1728475551031,0.19264297,62114.0,62113.0,0.16165864]
[1728475551482,0.03164897,62114.0,62113.0,0.32265464]
[1728475551729,0.03164897,62114.0,62113.0,0.16165864]
[1728475551956,0.03164897,62114.0,62113.0,0.32265464]
[1728475552223,0.02,62114.0,62113.0,0.32265464]
[1728475552466,0.03164897,62114.0,62113.0,0.16165864]
[1728475552967,0.03164897,62114.0,62113.0,0.32265464]
[1728475553415,0.02264897,62114.0,62113.0,0.32265464]
[1728475553660,0.01464897,62114.0,62113.0,0.16165864]
[1728475553885,0.01464897,62114.0,62113.0,0.32265464]
[1728475554104,0.01464897,62114.0,62113.0,0.16165864]
[1728475554575,0.02464897,62114.0,62113.0,0.32265464]
[1728475555062,0.02364897,62114.0,62113.0,0.16165864]
[1728475555335,0.03364897,62114.0,62113.0,0.32265464]
[1728475555559,0.03164897,62114.0,62113.0,0.32265464]
[1728475556024,0.03529097,62114.0,62113.0,0.32265464]
[1728475556276,0.03329097,62114.0,62113.0,0.32265464]
[1728475556982,0.021642,62114.0,62113.0,0.32265464]
[1728475557206,0.03329537,62114.0,62113.0,0.32265464]
[1728475557949,0.03329537,62114.0,62113.0,0.54932366]
[1728475558175,0.03329537,62114.0,62113.0,0.42765464]
[1728475558429,0.021642,62114.0,62113.0,0.42765464]
[1728475560834,0.023642,62114.0,62113.0,0.42765464]
[1728475561072,0.021642,62114.0,62113.0,0.42765464]
[1728475561280,0.021642,62114.0,62113.0,0.45181695]
[1728475563469,0.023642,62114.0,62113.0,0.45181695]
[1728475564021,0.021642,62114.0,62113.0,0.45181695]
[1728475567383,0.001642,62114.0,62113.0,0.45181695]
[1728475567625,0.012642,62114.0,62113.0,0.45181695]
[1728475567854,0.023642,62114.0,62113.0,0.45181695]
[1728475568082,0.012642,62114.0,62113.0,0.45181695]
[1728475568551,0.024642,62114.0,62113.0,0.45181695]
[1728475569253,0.013642,62114.0,62113.0,0.45181695]
[1728475569530,0.025642,62114.0,62113.0,0.45181695]
[1728475570724,0.025642,62114.0,62113.0,0.29082095]
[1728475570955,0.025642,62114.0,62113.0,0.45181695]
[1728475571193,0.03930075,62114.0,62113.0,0.29082095]
[1728475571436,0.03930075,62114.0,62113.0,0.26165864]
[1728475573141,0.40692499,62114.0,62113.0,0.16165864]
[1728475573911,0.45493959,62114.0,62113.0,0.16165864]
[1728475574139,0.02530075,62114.0,62113.0,0.32765464]
[1728475574369,0.02530075,62114.0,62113.0,0.52905464]
[1728475574608,0.02730075,62114.0,62113.0,0.52905464]
[1728475574849,0.015642,62114.0,62113.0,0.52905464]
[1728475575096,0.013642,62114.0,62113.0,0.62905464]
[1728475575312,0.001642,62114.0,62113.0,0.62905464]
[1728475575559,0.011642,62114.0,62113.0,0.62905464]
[1728475575844,0.012642,62114.0,62113.0,0.54995464]
[1728475576576,0.011642,62114.0,62113.0,0.54995464]
[1728475576817,0.011642,62114.0,62113.0,0.42765464]
[1728475576818,0.025642,62114.0,62113.0,0.42765464]
[1728475577349,0.03730075,62114.0,62113.0,0.42765464]
[1728475577591,0.03730075,62114.0,62113.0,0.26165864]
[1728475577592,0.19829475,62114.0,62113.0,0.26165864]
[1728475577807,0.04103821,62114.0,62113.0,0.26165864]
[1728475578033,0.20203221,62114.0,62113.0,0.16165864]
[1728475578260,0.04103821,62114.0,62113.0,0.16165864]
[1728475578716,0.20203221,62114.0,62113.0,0.16165864]
[1728475582297,0.36037674,62114.0,62113.0,0.16165864]
[1728475582531,0.35663928,62114.0,62113.0,0.16165864]
[1728475584841,0.40487975,62114.0,62113.0,0.16165864]
[1728475585074,0.40488304,62114.0,62113.0,0.16165864]
[1728475585306,0.35663928,62114.0,62113.0,0.16165864]
[1728475585537,0.42900492,62114.0,62113.0,0.16165864]
[1728475586000,0.42900228,62114.0,62113.0,0.16165864]
[1728475586241,0.42900228,62114.0,62113.0,0.000821]
[1728475586977,0.67243159,62114.0,62113.0,0.000821]
[1728475587218,0.56425619,62114.0,62113.0,0.000821]
[1728475587717,1.01187267,62114.0,62113.0,0.000821]
[1728475587967,1.01387267,62114.0,62113.0,0.000821]
[1728475588198,0.80153726,62114.0,62113.0,0.000821]
[1728475588444,0.58052521,62114.0,62113.0,0.000821]
[1728475588701,0.5350083,62114.0,62113.0,0.000821]
[1728475588931,0.5340083,62114.0,62113.0,0.000821]
[1728475589160,0.41233928,62114.0,62113.0,0.000821]
[1728475589401,0.5360083,62114.0,62113.0,0.000821]
[1728475590097,0.41633928,62114.0,62113.0,0.000821]
[1728475590552,0.5380083,62114.0,62113.0,0.000821]
[1728475591509,0.63438596,62114.0,62113.0,0.000821]
[1728475591761,0.63438114,62114.0,62113.0,0.000821]
[1728475592704,0.43501212,62114.0,62113.0,0.000821]
[1728475593181,0.33863928,62114.0,62113.0,0.000821]
[1728475593399,0.41091837,62114.0,62113.0,0.000821]
[1728475594604,0.53258739,62114.0,62113.0,0.000821]
[1728475596261,0.4603083,62114.0,62113.0,0.000821]
[1728475596760,0.53257527,62114.0,62113.0,0.000821]
[1728475597703,0.4603083,62114.0,62113.0,0.000821]
[1728475598174,0.53257527,62114.0,62113.0,0.000821]
[1728475598619,0.4603083,62114.0,62113.0,0.000821]
[1728475598844,0.53257527,62114.0,62113.0,0.000821]
[1728475599540,0.4603083,62114.0,62113.0,0.000821]
[1728475600023,0.55665023,62114.0,62113.0,0.000821]
[1728475600296,0.5417083,62114.0,62113.0,0.000821]
[1728475607888,0.54037317,62114.0,62113.0,0.000821]
[1728475608136,0.45897317,62114.0,62113.0,0.000821]
[1728475608385,0.25050121,62114.0,62113.0,0.16165864]
[1728475608611,0.18029475,62114.0,62113.0,0.16165864]
[1728475609092,0.17829475,62114.0,62113.0,0.16165864]
[1728475609341,0.18029475,62114.0,62113.0,0.16165864]
[1728475609572,0.17629475,62114.0,62113.0,0.16165864]
[1728475609822,0.11755153,62114.0,62113.0,0.16165864]
[1728475610054,0.01330075,62114.0,62113.0,0.16165864]
[1728475610291,0.01330075,62114.0,62113.0,0.56414415]
[1728475610525,0.01330075,62114.0,62113.0,1.32254615]
[1728475610766,0.01330075,62114.0,62113.0,1.08105664]
[1728475610767,0.001642,62114.0,62113.0,1.08105664]
[1728475611256,0.001642,62114.0,62113.0,1.08605664]
[1728475611512,0.001642,62116.0,62115.0,0.41066002]
[1728475611803,0.001642,62116.0,62115.0,4.17284266]
[1728475612315,0.0496594,62133.0,62132.0,0.339247]
[1728475612557,0.0496594,62133.0,62132.0,0.50008464]
[1728475612784,0.002,62142.0,62139.0,0.321858]
[1728475613013,0.002,62141.0,62140.0,0.32176364]
[1728475613233,0.01304063,62141.0,62140.0,0.32176364]
[1728475613465,0.002,62141.0,62140.0,0.32176364]
[1728475613711,0.01304064,62141.0,62140.0,0.32176364]
[1728475613951,0.002,62141.0,62140.0,0.32176364]
[1728475614180,0.01304064,62141.0,62140.0,0.32176364]
[1728475614413,0.002,62141.0,62140.0,0.32176364]
[1728475614643,0.01304064,62141.0,62140.0,0.16083764]
[1728475614888,0.002,62141.0,62140.0,0.16083764]
[1728475615116,0.01304064,62141.0,62140.0,0.16083764]
[1728475615256,0.012,62141.0,62140.0,0.16083764]
[1728475615497,0.02304064,62141.0,62140.0,0.32176364]
[1728475615923,0.02904064,62141.0,62140.0,0.32176364]
[1728475616126,0.018,62141.0,62140.0,0.32176364]
[1728475616330,0.02904064,62141.0,62140.0,0.32176364]
[1728475618099,0.02904064,62141.0,62140.0,0.32676364]
[1728475618316,0.018,62141.0,62140.0,0.52076364]
[1728475621626,0.018,62141.0,62140.0,0.88441064]
[1728475622347,0.018,62141.0,62140.0,0.96131064]
[1728475623472,0.018,62141.0,62140.0,0.75971364]
[1728475623701,0.018,62141.0,62140.0,0.78882564]
[1728475623932,0.018,62141.0,62140.0,0.75192764]
[1728475624415,0.018,62141.0,62140.0,0.75692764]
[1728475624667,0.018,62141.0,62140.0,0.77992764]
[1728475624915,0.00731127,62141.0,62140.0,0.77992764]
[1728475625140,0.002,62167.0,62140.0,0.77992764]
[1728475625141,0.002,62167.0,62166.0,0.160859]
[1728475625363,0.002,62167.0,62166.0,0.32169664]
[1728475625590,0.002,62175.0,62166.0,0.16083764]
[1728475625810,0.003642,62170.0,62169.0,0.32168864]
[1728475626251,0.01563886,62170.0,62169.0,0.32168864]
[1728475626470,0.003642,62170.0,62169.0,0.32168864]
[1728475627198,0.01570853,62170.0,62169.0,0.32168864]
[1728475628116,0.01670853,62170.0,62169.0,0.32768864]
[1728475628572,0.01570853,62170.0,62169.0,0.32168864]
[1728475628833,0.01670853,62170.0,62169.0,0.32968864]
[1728475630447,0.28358374,62170.0,62169.0,0.013]
[1728475630668,0.35938374,62170.0,62169.0,0.013]
[1728475630892,0.35564628,62170.0,62169.0,0.013]
[1728475631601,0.35464628,62170.0,62169.0,0.005]
[1728475632045,0.35364628,62170.0,62169.0,0.003]
[1728475632299,0.160882,62157.0,62156.0,0.24148951]
[1728475632512,0.162882,62157.0,62156.0,0.40232715]
[1728475632703,0.1749382,62157.0,62156.0,0.40232715]
[1728475633173,0.17867566,62157.0,62156.0,0.16083764]
[1728475634112,0.17867566,62157.0,62156.0,0.16183764]
[1728475634113,0.18667566,62157.0,62156.0,0.16183764]
[1728475634575,0.18667566,62157.0,62156.0,0.001]
[1728475634576,0.26807566,62157.0,62156.0,0.001]
[1728475634844,0.27907566,62157.0,62156.0,0.002]
[1728475635068,0.38875617,62157.0,62156.0,0.002]
[1728475635301,0.38875617,62157.0,62149.0,0.24148951]
[1728475635302,0.162901,62150.0,62149.0,0.24148951]
[1728475635538,0.35185693,62150.0,62149.0,0.40232715]
[1728475635764,0.160921,62142.0,62137.0,0.005]
[1728475636028,0.321823,62146.0,62134.0,0.24148951]
[1728475636029,0.162939,62135.0,62134.0,0.24148951]
[1728475636259,0.16667646,62135.0,62134.0,0.40232715]
[1728475636499,0.17866774,62135.0,62134.0,0.40232715]
[1728475636719,0.17866774,62135.0,62134.0,0.16083764]
[1728475638879,0.18066774,62135.0,62134.0,0.16083764]
[1728475639097,0.18866774,62135.0,62134.0,0.16183764]
[1728475639325,0.18666774,62135.0,62134.0,0.16183764]
[1728475639547,0.17966774,62135.0,62134.0,0.16083764]
[1728475639784,0.18066774,62135.0,62134.0,0.16883764]
[1728475642995,0.17693028,62135.0,62134.0,0.16883764]
[1728475643234,0.18066774,62135.0,62134.0,0.16883764]
[1728475645565,0.01399128,62135.0,62134.0,0.32977964]
[1728475645812,0.002,62135.0,62134.0,0.32977964]
[1728475646970,0.01596218,62135.0,62134.0,0.33477964]
[1728475647409,0.01396218,62135.0,62134.0,0.33477964]
[1728475648396,0.002,62135.0,62134.0,0.33477964]
[1728475649109,0.01396218,62135.0,62134.0,0.33477964]
[1728475649329,0.002,62135.0,62134.0,0.42957964]
[1728475649992,0.002,62135.0,62134.0,0.53040064]
[1728475653299,0.001,62135.0,62134.0,0.53040064]
[1728475653757,0.006,62135.0,62134.0,0.53040064]
[1728475655080,0.005,62135.0,62134.0,0.52240064]
[1728475655274,0.014,62135.0,62134.0,0.52340064]
[1728475659517,0.014,62135.0,62134.0,0.36245864]
[1728475659770,0.016,62135.0,62134.0,0.26765864]
[1728475660000,0.02943276,62135.0,62134.0,0.26765864]
[1728475660262,0.19037176,62135.0,62134.0,0.26765864]
[1728475660554,0.19037176,62135.0,62134.0,0.16265864]
[1728475660820,0.19410922,62135.0,62134.0,0.16265864]
[1728475661534,0.19410922,62135.0,62134.0,0.001821]
[1728475661535,0.33141326,62135.0,62134.0,0.001821]
[1728475661769,0.3276758,62135.0,62134.0,0.001821]
[1728475662222,0.19037176,62135.0,62134.0,0.001821]
[1728475662441,0.19410922,62135.0,62134.0,0.001821]
[1728475662683,0.18010922,62135.0,62134.0,0.000821]
[1728475662941,0.18010922,62135.0,62134.0,0.007821]
[1728475662942,0.18110922,62135.0,62134.0,0.007821]
[1728475663196,0.18110922,62135.0,62134.0,0.013821]
[1728475663197,0.32344139,62135.0,62134.0,0.013821]
[1728475663470,0.31970393,62135.0,62134.0,0.013821]
[1728475664869,0.17837176,62135.0,62134.0,0.013821]
[1728475665092,0.18210922,62135.0,62134.0,0.013821]
[1728475667033,0.17837176,62135.0,62134.0,0.17465864]
[1728475667273,0.17832329,62135.0,62134.0,0.17465864]
[1728475668404,0.17832329,62135.0,62134.0,0.17485272]
[1728475671092,0.01543276,62135.0,62134.0,0.17485272]
[1728475671349,0.01543276,62135.0,62134.0,0.34079472]
[1728475671572,0.01543276,62135.0,62134.0,0.44079472]
[1728475671801,0.002,62135.0,62134.0,0.53079472]
[1728475672244,0.001,62135.0,62134.0,0.52479472]
[1728475672465,0.00295153,62135.0,62134.0,0.52579472]
[1728475672681,0.01535294,62135.0,62134.0,0.51879472]
[1728475672898,0.00195153,62137.0,62136.0,0.005]
[1728475673111,0.00195153,62137.0,62136.0,0.16583764]
[1728475673605,0.00195153,62138.0,62137.0,0.165934]
[1728475673838,0.160927,62140.0,62137.0,0.16583764]
[1728475674073,0.160929,62139.0,62138.0,0.16083764]
[1728475675719,0.16288053,62139.0,62138.0,0.16083764]
[1728475675913,0.16988053,62139.0,62138.0,0.16183764]
[1728475677026,0.18288053,62139.0,62138.0,0.16283764]
[1728475677909,0.02,62139.0,62138.0,0.32376964]
[1728475678134,0.02,62139.0,62138.0,0.16283764]
[1728475678628,0.180929,62139.0,62138.0,0.16283764]
[1728475679762,0.02,62139.0,62138.0,0.16283764]
[1728475679997,0.02,62139.0,62138.0,0.32376964]
[1728475680473,0.02,62139.0,62138.0,0.16283764]
[1728475680700,0.02,62139.0,62138.0,0.32376964]
[1728475682094,0.02,62139.0,62138.0,0.16283764]
[1728475682340,0.02,62139.0,62138.0,0.32376964]
[1728475683288,0.02,62139.0,62138.0,0.16283764]
[1728475683528,0.02,62139.0,62138.0,0.32376964]
[1728475683762,0.02,62139.0,62138.0,0.32396372]
[1728475686196,0.03341328,62139.0,62138.0,0.32396372]
[1728475687342,0.03341328,62139.0,62138.0,0.16303172]
[1728475687560,0.03505328,62139.0,62138.0,0.32396372]
[1728475687804,0.03700481,62139.0,62138.0,0.32396372]
[1728475688741,0.03700481,62139.0,62138.0,0.16303172]
[1728475689476,0.03700481,62139.0,62138.0,0.16803172]
[1728475689723,0.19793381,62139.0,62138.0,0.16803172]
[1728475691988,0.19793381,62139.0,62138.0,0.16803171]
[1728475702075,0.19598228,62139.0,62138.0,0.16803171]
[1728475703190,0.03700481,62139.0,62138.0,0.16803171]
[1728475703417,0.19563149,62139.0,62138.0,0.16803171]
[1728475707637,0.03470249,62139.0,62138.0,0.16803171]
[1728475707855,0.19563149,62139.0,62138.0,0.16803171]
[1728475712137,0.27623149,62139.0,62138.0,0.16303171]
[1728475712607,0.3244003,62139.0,62138.0,0.16303171]
[1728475712854,0.34848471,62139.0,62138.0,0.16303171]
[1728475713090,0.4370381,62139.0,62138.0,0.00219407]
[1728475713549,0.55746014,62139.0,62138.0,0.00219407]
[1728475714011,0.55276246,62139.0,62138.0,0.00119407]
[1728475714243,0.41934042,62139.0,62138.0,0.00019407]
[1728475714477,0.41934042,62139.0,62138.0,0.00319407]
[1728475714705,0.41934042,62139.0,62138.0,0.00619407]
[1728475716350,0.56399254,62139.0,62138.0,0.00619407]
[1728475716576,0.41934042,62139.0,62138.0,0.00619407]
[1728475716799,0.56399254,62139.0,62138.0,0.00619407]
[1728475717035,0.41934042,62139.0,62138.0,0.00619407]
[1728475717266,0.56399254,62139.0,62138.0,0.00619407]
[1728475717526,0.41934042,62139.0,62138.0,0.00619407]
[1728475721168,0.53981101,62139.0,62138.0,0.00619407]
[1728475721423,0.25853381,62139.0,62138.0,0.00619407]
[1728475721662,0.38273079,62139.0,62138.0,0.00619407]
[1728475721914,0.17793381,62139.0,62138.0,0.16703171]
[1728475722160,0.01505328,62139.0,62138.0,0.16703171]
[1728475722403,0.01505328,62139.0,62138.0,0.33296371]
[1728475722639,0.0632404,62139.0,62138.0,0.33296371]
[1728475722860,0.06519193,62139.0,62138.0,0.32996371]
[1728475723108,0.01700481,62139.0,62138.0,0.32996371]
[1728475723340,0.01700481,62139.0,62138.0,0.16703171]
[1728475723571,0.01505328,62139.0,62138.0,0.32796371]
[1728475723811,0.01505328,62139.0,62138.0,0.16703171]
[1728475724054,0.01505328,62139.0,62138.0,0.32878371]
[1728475724350,0.01505328,62139.0,62138.0,0.42608371]
[1728475731752,0.01505328,62139.0,62138.0,0.26515171]
[1728475731992,0.17598228,62139.0,62138.0,0.26515171]
[1728475733196,0.17793381,62139.0,62138.0,0.26515171]
[1728475733431,0.17598228,62139.0,62138.0,0.26515171]
[1728475733662,0.01505328,62139.0,62138.0,0.26515171]
[1728475736014,0.01700481,62139.0,62138.0,0.26515171]
[1728475737393,0.01700481,62139.0,62138.0,0.27314953]
[1728475737626,0.01505328,62139.0,62138.0,0.27314953]
[1728475738861,0.17793381,62139.0,62138.0,0.27314953]
[1728475739105,0.01700481,62139.0,62138.0,0.27314953]
[1728475739345,0.17793381,62139.0,62138.0,0.26515171]
[1728475741339,0.01505328,62139.0,62138.0,0.26515171]
[1728475742093,0.17793381,62139.0,62138.0,0.26515171]
[1728475742815,0.01505328,62139.0,62138.0,0.26515171]
[1728475743054,0.17598228,62139.0,62138.0,0.26515171]
[1728475743753,0.01505328,62139.0,62138.0,0.26515171]
[1728475744749,0.01505328,62139.0,62138.0,0.42608371]
[1728475745496,0.01505328,62139.0,62138.0,0.26515171]
[1728475745729,0.01505328,62139.0,62138.0,0.42608371]
[1728475747194,0.01700481,62139.0,62138.0,0.42608371]
[1728475748072,0.01700481,62139.0,62138.0,0.26515171]
[1728475748221,0.01505328,62139.0,62138.0,0.26515171]
[1728475749243,0.01505328,62139.0,62138.0,0.42608371]
[1728475752191,0.01505328,62139.0,62138.0,0.60168371]
[1728475753073,0.01505328,62139.0,62138.0,0.60068371]
[1728475753330,0.01605328,62139.0,62138.0,0.60068371]
[1728475753792,0.01605328,62139.0,62138.0,0.52508371]
[1728475754030,0.01800481,62139.0,62138.0,0.36415171]
[1728475754465,0.02100481,62139.0,62138.0,0.36415171]
[1728475754678,0.02000481,62139.0,62138.0,0.36415171]
[1728475754913,0.02300481,62139.0,62138.0,0.3641517]
[1728475755127,0.02000481,62139.0,62138.0,0.3641517]
[1728475755375,0.18093381,62139.0,62138.0,0.2668517]
[1728475755604,0.18593381,62139.0,62138.0,0.1668517]
[1728475755876,0.18593381,62139.0,62138.0,0.1618517]
[1728475756329,0.31383938,62139.0,62138.0,0.1618517]
[1728475756559,0.38613938,62139.0,62138.0,0.1618517]
[1728475756805,0.30641072,62139.0,62138.0,0.1618517]
[1728475757747,0.30141072,62139.0,62138.0,0.1618517]
[1728475757970,0.31041072,62139.0,62138.0,0.1618517]
[1728475758191,0.30141072,62139.0,62138.0,0.1618517]
[1728475758427,0.30841072,62139.0,62138.0,0.1628517]
[1728475758653,0.32414818,62139.0,62138.0,0.1628517]
[1728475758881,0.31341072,62139.0,62138.0,0.1618517]
[1728475760070,0.32241072,62139.0,62138.0,0.1618517]
[1728475762087,0.32241072,62139.0,62138.0,0.00101406]
[1728475762318,0.27423381,62139.0,62138.0,0.00101406]
[1728475762566,0.27797127,62139.0,62138.0,0.00101406]
[1728475762794,0.39841355,62139.0,62138.0,0.00101406]
[1728475763012,0.39461955,62139.0,62138.0,0.00101406]
[1728475763511,0.43504042,62139.0,62138.0,0.00101406]
[1728475763781,0.55542809,62139.0,62138.0,0.00101406]
[1728475764184,0.51617743,62139.0,62138.0,0.00101406]
[1728475766499,0.39464119,62139.0,62138.0,0.1618517]
[1728475766717,0.19893381,62139.0,62138.0,0.1618517]
[1728475766962,0.27117938,62139.0,62138.0,0.1618517]
[1728475769344,0.19893381,62139.0,62138.0,0.1618517]
[1728475770754,0.03800481,62139.0,62138.0,0.1618517]
[1728475771711,0.19893381,62139.0,62138.0,0.1618517]
[1728475778500,0.32048963,62139.0,62138.0,0.1618517]
[1728475778721,0.39548963,62139.0,62138.0,0.1618517]
[1728475780376,0.46773517,62139.0,62138.0,0.1618517]
[1728475780600,0.39548963,62139.0,62138.0,0.1618517]
[1728475781026,0.4677325,62139.0,62138.0,0.1618517]